Workbook

Sheet 建设公司
A1: 防雷检测工程项目汇总表1（盐城东方建设投资股份有限公司） 编制人：陈超 （资产部） 编制日期：2022年11月18日
A2: 序号 | B2: 建设单位（全称） | C2: 项目所在园区 | D2: 建筑物名称（全称与规划许可证、 房产证统一） | E2: 产权证号、规划许可证号 | F2: 建筑面积（㎡） | G2: 公安备案坐落（门牌号） | H2: 备注
A3: 1 | E3: 东方建设公司 面积合计 | F3: =SUM(F8,F4,F66,F148,F167,F176,F184) -> 1,842,861.42
C4: （一）软件园 | E4: 软件园面积合计 | F4: =SUM(F5:F7) -> 62,694.12
A5: 1 | B5: 盐城东方建设投资股份有限公司 | C5: 软件园 | D5: 盐城国际软件园和服务外包基地二期6#楼 | E5: / | F5: 38,476.84 | G5: 盐城市经济开发区希望大道南路5号6幢 | H5: 不动产权证面积(房产）
A6: 2 | B6: 盐城东方建设投资股份有限公司 | C6: 软件园 | D6: 盐城国际软件园和服务外包基地二期8#楼 | E6: / | F6: 12,862.60 | G6: 希望大道南路5号东方软件家园8幢 | H6: 不动产权证面积(房产）
A7: 3 | B7: 盐城东方建设投资股份有限公司 | C7: 软件园 | D7: 盐城国际软件园和服务外包基地二期9#楼 | E7: / | F7: 11,354.68 | G7: 希望大道南路5号东方软件家园9幢 | H7: 不动产权证面积(房产）
C8: （二）综保区 | E8: 综保区面积合计 | F8: =SUM(F9,F12,F17,F28,F31,F44) -> 620,507.31
C9: 综保区原悦禾供应链项目 | F9: =SUM(F10:F11) -> 14,736.00
A10: 1 | B10: 盐城东方建设投资股份有限公司 | C10: 盐城综合保税区 | D10: 综合保税区11-C保税仓库 | E10: 2021（0011480） | F10: 8,704.45 | G10: 盐城经济技术开发区希望大道南路18-16号13幢 | H10: 不动产权证面积(房产）
A11: 2 | B11: 盐城东方建设投资股份有限公司 | C11: 盐城综合保税区 | D11: 综合保税区11-D保税仓库 | E11: 2021（0011479） | F11: 6,031.55 | G11: 盐城经济技术开发区希望大道南路18-16号14幢 | H11: 不动产权证面积(房产）
C12: 综保区商务楼、口岸楼及监管仓库项目 | F12: =SUM(F13:F16) -> 31,398.30
A13: 1 | B13: 盐城东方建设投资股份有限公司 | C13: 盐城综合保税区 | D13: 商务楼 | E13: （2020）0150241 | F13: 23,958.99 | G13: 市区开希望大道南路18号1幢 | H13: 不动产权证面积(房产）
A14: 2 | B14: 盐城东方建设投资股份有限公司 | C14: 盐城综合保税区 | D14: 盐城综合保税区商检楼（口岸楼） | E14: （2020）0145755 | F14: 2,995.61 | G14: 盐城经济技术开发区希望大道南路18-18号1幢 | H14: 不动产权证面积(房产）
A15: 3 | B15: 盐城东方建设投资股份有限公司 | C15: 盐城综合保税区 | D15: 综合保税区监管仓库（一期） | E15: （2020）0145786 | F15: 2,221.85 | G15: 盐城经济技术开发区希望大道南路18-18号3幢 | H15: 不动产权证面积(房产）
A16: 4 | B16: 盐城东方建设投资股份有限公司 | C16: 盐城综合保税区 | D16: 综合保税区查验仓库（一期） | E16: （2020）0145777 | F16: 2,221.85 | G16: 盐城经济技术开发区希望大道南路18-18号2幢 | H16: 不动产权证面积(房产）
C17: 综保区保税仓库项目 | F17: =SUM(F18:F27) -> 106,740.22
A18: 1 | B18: 盐城东方建设投资股份有限公司 | C18: 盐城综合保税区 | D18: 综保区1#中转仓库 | E18: （2020）0150245 | F18: 10,265.98 | G18: (原市区开柏路18、20号1幢)希望大道南路18-2号 | H18: 不动产权证面积(房产）
A19: 2 | B19: 盐城东方建设投资股份有限公司 | C19: 盐城综合保税区 | D19: 综保区2#中转仓库 | E19: （2020）0150247 | F19: 11,139.26 | G19: (原市区开柏路22号1幢)希望大道南路18-2号 | H19: 不动产权证面积(房产）
A20: 3 | B20: 盐城东方建设投资股份有限公司 | C20: 盐城综合保税区 | D20: 综保区3#中转仓库 | E20: （2020）0150246 | F20: 9,577.83 | G20: (原市区开柏路16号1幢)希望大道南路18-2号 | H20: 不动产权证面积(房产）
A21: 4 | B21: 盐城东方建设投资股份有限公司 | C21: 盐城综合保税区 | D21: 综保区4#中转仓库 | E21: （2020）0150258 | F21: 11,865.73 | G21: (原市区开柏路10、12号1幢)希望大道南路18-4号 | H21: 不动产权证面积(房产）
A22: 5 | B22: 盐城东方建设投资股份有限公司 | C22: 盐城综合保税区 | D22: 综保区5#中转仓库 | E22: （2020）0150262 | F22: 13,647.20 | G22: (原市区开柏路6、8号1幢)希望大道南路18-4号 | H22: 不动产权证面积(房产）
A23: 6 | B23: 盐城东方建设投资股份有限公司 | C23: 盐城综合保税区 | D23: 综保区6#中转仓库 | E23: （2020）0150263 | F23: 10,264.48 | G23: (原市区开柏路2号1幢)希望大道南路18-4号 | H23: 不动产权证面积(房产）
A24: 7 | B24: 盐城东方建设投资股份有限公司 | C24: 盐城综合保税区 | D24: 盐城综合保税区7#中转仓库（保税仓库） | E24: （2020）0148364 | F24: 9,606.48 | G24: 盐城经济技术开发区希望大道南路18-8号7幢 | H24: 不动产权证面积(房产）
A25: 8 | B25: 盐城东方建设投资股份有限公司 | C25: 盐城综合保税区 | D25: 盐城综合保税区8#中转仓库（保税仓库） | E25: （2020）0148367 | F25: 9,914.73 | G25: 盐城经济技术开发区希望大道南路18-8号8幢 | H25: 不动产权证面积(房产）
A26: 9 | B26: 盐城东方建设投资股份有限公司 | C26: 盐城综合保税区 | D26: 盐城综合保税区9#中转仓库（保税仓库） | E26: （2020）0148366 | F26: 10,069.74 | G26: 盐城经济技术开发区希望大道南路18-8号9幢 | H26: 不动产权证面积(房产）
A27: 10 | B27: 盐城东方建设投资股份有限公司 | C27: 盐城综合保税区 | D27: 盐城综合保税区10#中转仓库（保税仓库） | E27: （2020）0148365 | F27: 10,388.79 | G27: 盐城经济技术开发区希望大道南路18-8号10幢 | H27: 不动产权证面积(房产）
C28: 综保区多层电子厂项目 | F28: =SUM(F29:F30) -> 95,808.40
A29: 1 | B29: 盐城东方建设投资股份有限公司 | C29: 盐城综合保税区 | D29: 盐城综合保税区1#多层电子厂房 | E29: （2020）0148376 | F29: 47,904.20 | G29: 盐城经济技术开发区希望大道南路18-12号1幢 | H29: 不动产权证面积(房产）
A30: 2 | B30: 盐城东方建设投资股份有限公司 | C30: 盐城综合保税区 | D30: 盐城综合保税区3#多层电子厂房 | E30: （2020）0148378 | F30: 47,904.20 | G30: 盐城经济技术开发区希望大道南路18-12号3幢 | H30: 不动产权证面积(房产）
C31: 综保区标厂项目 | F31: =SUM(F32:F43) -> 132,311.14
A32: 1 | B32: 盐城东方建设投资股份有限公司 | C32: 盐城综合保税区 | D32: 盐城综合保税区A3#厂房 | E32: （2020）0149049 | F32: 3,384.89 | G32: 盐城经济技术开发区希望大道南路18-16号1 幢 | H32: 不动产权证面积(房产）
A33: 2 | B33: 盐城东方建设投资股份有限公司 | C33: 盐城综合保税区 | D33: 盐城综合保税区A4#厂房 | E33: （2020）0149054 | F33: 3,384.89 | G33: 盐城经济技术开发区希望大道南路18-16号2 幢 | H33: 不动产权证面积(房产）
A34: 3 | B34: 盐城东方建设投资股份有限公司 | C34: 盐城综合保税区 | D34: 盐城综合保税区A5#厂房 | E34: （2020）0149386 | F34: 3,398.46 | G34: 盐城经济技术开发区希望大道南路18-16号3 幢 | H34: 不动产权证面积(房产）
A35: 4 | B35: 盐城东方建设投资股份有限公司 | C35: 盐城综合保税区 | D35: 盐城综合保税区A6#厂房 | E35: （2020）0149369 | F35: 3,399.72 | G35: 盐城经济技术开发区希望大道南路18-16号4 幢 | H35: 不动产权证面积(房产）
A36: 5 | B36: 盐城东方建设投资股份有限公司 | C36: 盐城综合保税区 | D36: 盐城综合保税区A7#厂房 | E36: （2020）0149372 | F36: 13,064.58 | G36: 盐城经济技术开发区希望大道南路18-16号5 幢 | H36: 不动产权证面积(房产）
A37: 6 | B37: 盐城东方建设投资股份有限公司 | C37: 盐城综合保税区 | D37: 盐城综合保税区A8#厂房 | E37: （2020）0149385 | F37: 9,244.22 | G37: 盐城经济技术开发区希望大道南路18-16号6 幢 | H37: 不动产权证面积(房产）
A38: 7 | B38: 盐城东方建设投资股份有限公司 | C38: 盐城综合保税区 | D38: 盐城综合保税区A1#厂房 | E38: （2020）0149039 | F38: 13,910.21 | G38: 盐城经济技术开发区希望大道南路18-14号7 幢 | H38: 不动产权证面积(房产）
A39: 8 | B39: 盐城东方建设投资股份有限公司 | C39: 盐城综合保税区 | D39: 盐城综合保税区A2#厂房 | E39: （2020）0149042 | F39: 13,910.21 | G39: 盐城经济技术开发区希望大道南路18-14号8 幢 | H39: 不动产权证面积(房产）
A40: 9 | B40: 盐城东方建设投资股份有限公司 | C40: 盐城综合保税区 | D40: 盐城综合保税区9#标准厂房 | E40: （2020）0149360 | F40: 17,593.70 | G40: 盐城经济技术开发区希望大道南路18-16号9 幢 | H40: 不动产权证面积(房产）
A41: 10 | B41: 盐城东方建设投资股份有限公司 | C41: 盐城综合保税区 | D41: 盐城综合保税区10#标准厂房 | E41: （2020）0149358 | F41: 17,593.70 | G41: 盐城经济技术开发区希望大道南路18-16号10 幢 | H41: 不动产权证面积(房产）
A42: 11 | B42: 盐城东方建设投资股份有限公司 | C42: 盐城综合保税区 | D42: 盐城综合保税区11#标准厂房 | E42: （2020）0149351 | F42: 16,713.28 | G42: 盐城经济技术开发区希望大道南路18-16号11 幢 | H42: 不动产权证面积(房产）
A43: 12 | B43: 盐城东方建设投资股份有限公司 | C43: 盐城综合保税区 | D43: 盐城综合保税区12#标准厂房 | E43: （2020）0149353 | F43: 16,713.28 | G43: 盐城经济技术开发区希望大道南路18-16号12 幢 | H43: 不动产权证面积(房产）
C44: 综保区2期标厂项目 | F44: =SUM(F45:F65) -> 239,513.25
A45: 1 | B45: 盐城东方建设投资股份有限公司 | C45: 盐城综合保税区 | D45: 综保区二期封关标厂1#楼 | E45: （2019）0023434 | F45: 18,338.74 | G45: 盐城经济技术开发区赣江路3号1幢 | H45: 不动产权证面积(房产）
A46: 2 | B46: 盐城东方建设投资股份有限公司 | C46: 盐城综合保税区 | D46: 综保区二期封关标厂2#楼 | E46: （2019）0023442 | F46: 18,338.74 | G46: 盐城经济技术开发区赣江路3号2幢 | H46: 不动产权证面积(房产）
A47: 3 | B47: 盐城东方建设投资股份有限公司 | C47: 盐城综合保税区 | D47: 综保区二期封关标厂3#楼 | E47: （2019）0023443 | F47: 18,338.74 | G47: 盐城经济技术开发区赣江路3号3幢 | H47: 不动产权证面积(房产）
A48: 4 | B48: 盐城东方建设投资股份有限公司 | C48: 盐城综合保税区 | D48: 综保区二期封关标厂4#楼 | E48: （2019）0023444 | F48: 20,522.35 | G48: 盐城经济技术开发区赣江路3号4幢 | H48: 不动产权证面积(房产）
A49: 5 | B49: 盐城东方建设投资股份有限公司 | C49: 盐城综合保税区 | D49: 综保区二期封关标厂5#楼 | E49: （2019）0023433 | F49: 20,522.35 | G49: 盐城经济技术开发区赣江路3号5幢 | H49: 不动产权证面积(房产）
A50: 6 | B50: 盐城东方建设投资股份有限公司 | C50: 盐城综合保税区 | D50: 综保区二期封关标厂6#楼 | E50: （2019）0023435 | F50: 18,336.57 | G50: 盐城经济技术开发区赣江路3号6幢 | H50: 不动产权证面积(房产）
A51: 7 | B51: 盐城东方建设投资股份有限公司 | C51: 盐城综合保税区 | D51: 综保区二期封关标厂7#楼 | E51: （2019）0023440 | F51: 18,338.74 | G51: 盐城经济技术开发区赣江路3号7幢 | H51: 不动产权证面积(房产）
A52: 8 | B52: 盐城东方建设投资股份有限公司 | C52: 盐城综合保税区 | D52: 综保区二期封关标厂8#楼 | E52: （2019）0023447 | F52: 18,338.74 | G52: 盐城经济技术开发区赣江路3号8幢 | H52: 不动产权证面积(房产）
A53: 9 | B53: 盐城东方建设投资股份有限公司 | C53: 盐城综合保税区 | D53: 综保区二期封关标厂9#楼 | E53: （2019）0023450 | F53: 85.12 | G53: 盐城经济技术开发区赣江路3号9幢 | H53: 不动产权证面积(房产）
A54: 10 | B54: 盐城东方建设投资股份有限公司 | C54: 盐城综合保税区 | D54: 综保区二期封关标厂10#楼 | E54: （2019）0023472 | F54: 85.12 | G54: 盐城经济技术开发区赣江路3号10幢 | H54: 不动产权证面积(房产）
A55: 11 | B55: 盐城东方建设投资股份有限公司 | C55: 盐城综合保税区 | D55: 综保区二期封关仓库 1#楼 | E55: （2019）0023586 | F55: 6,224.46 | G55: 盐城经济技术开发区赣江路1号1幢 | H55: 不动产权证面积(房产）
A56: 12 | B56: 盐城东方建设投资股份有限公司 | C56: 盐城综合保税区 | D56: 综保区二期封关仓库 2#楼 | E56: （2019）0023588 | F56: 6,224.46 | G56: 盐城经济技术开发区赣江路1号2幢 | H56: 不动产权证面积(房产）
A57: 13 | B57: 盐城东方建设投资股份有限公司 | C57: 盐城综合保税区 | D57: 综保区二期封关仓库 3#楼 | E57: （2019）0023589 | F57: 6,224.46 | G57: 盐城经济技术开发区赣江路1号3幢 | H57: 不动产权证面积(房产）
A58: 14 | B58: 盐城东方建设投资股份有限公司 | C58: 盐城综合保税区 | D58: 综保区二期封关仓库 4#楼 | E58: （2019）0023590 | F58: 11,537.23 | G58: 盐城经济技术开发区赣江路1号4幢 | H58: 不动产权证面积(房产）
A59: 15 | B59: 盐城东方建设投资股份有限公司 | C59: 盐城综合保税区 | D59: 综保区二期封关仓库 5#楼 | E59: （2019）0023591 | F59: 11,537.23 | G59: 盐城经济技术开发区赣江路1号5幢 | H59: 不动产权证面积(房产）
A60: 16 | B60: 盐城东方建设投资股份有限公司 | C60: 盐城综合保税区 | D60: 综保区二期封关仓库 6#楼 | E60: （2019）0023593 | F60: 11,537.23 | G60: 盐城经济技术开发区赣江路1号6幢 | H60: 不动产权证面积(房产）
A61: 17 | B61: 盐城东方建设投资股份有限公司 | C61: 盐城综合保税区 | D61: 综保区二期封关仓库 7#楼 | E61: （2019）0023597 | F61: 11,537.23 | G61: 盐城经济技术开发区赣江路1号7幢 | H61: 不动产权证面积(房产）
A62: 18 | B62: 盐城东方建设投资股份有限公司 | C62: 盐城综合保税区 | D62: 综保区二期封关仓库 8#楼 | E62: （2019）0023610 | F62: 11,537.23 | G62: 盐城经济技术开发区赣江路1号8幢 | H62: 不动产权证面积(房产）
A63: 19 | B63: 盐城东方建设投资股份有限公司 | C63: 盐城综合保税区 | D63: 综保区二期封关仓库 9#楼 | E63: （2019）0023613 | F63: 11,537.23 | G63: 盐城经济技术开发区赣江路1号9幢 | H63: 不动产权证面积(房产）
A64: 20 | B64: 盐城东方建设投资股份有限公司 | C64: 盐城综合保税区 | D64: 综保区二期封关仓库 10#楼 | E64: （2019）0023614 | F64: 286.16 | G64: 盐城经济技术开发区赣江路1号10幢 | H64: 不动产权证面积(房产）
A65: 21 | B65: 盐城东方建设投资股份有限公司 | C65: 盐城综合保税区 | D65: 综保区二期封关仓库 11#楼 | E65: （2019）0023616 | F65: 85.12 | G65: 盐城经济技术开发区赣江路1号11幢 | H65: 不动产权证面积(房产）
C66: （三）韩资园 | E66: 韩资园面积合计 | F66: =SUM(F69,F67,F76,F80,F101,F111,F120,F129,F140) -> 758,366.36
C67: 韩资园 | F67: 17,685.14
A68: 1 | B68: 盐城东方建设投资股份有限公司 | C68: 韩资工业园 | D68: 韩资工业园国际邻里中心(即：综合服务中心工程) | E68: （2021）0160199 | F68: 17,685.14 | G68: 盐城经济技术开发区九华山路50号4幢 | H68: 不动产权证面积(房产）
C69: 韩资园东方电子厂项目 | F69: =SUM(F70:F75) -> 117,862.56
A70: 1 | B70: 盐城东方建设投资股份有限公司 | C70: 韩资工业园 | D70: 韩资工业园东方电子1#厂房 | E70: （2020）0150908 | F70: 7,082.38 | G70: 盐城经济技术开发区岷江路112号1幢 | H70: 不动产权证面积(房产）
A71: 2 | B71: 盐城东方建设投资股份有限公司 | C71: 韩资工业园 | D71: 韩资工业园东方电子2#厂房 | E71: （2020）0150917 | F71: 7,083.38 | G71: 盐城经济技术开发区岷江路112号2幢 | H71: 不动产权证面积(房产）
A72: 3 | B72: 盐城东方建设投资股份有限公司 | C72: 韩资工业园 | D72: 韩资工业园东方电子3#厂房 | E72: （2020）0151017 | F72: 25,924.20 | G72: 盐城经济技术开发区岷江路111号3幢 | H72: 不动产权证面积(房产）
A73: 4 | B73: 盐城东方建设投资股份有限公司 | C73: 韩资工业园 | D73: 韩资工业园东方电子4#厂房 | E73: （2020）0151020 | F73: 25,924.20 | G73: 盐城经济技术开发区岷江路111号4幢 | H73: 不动产权证面积(房产）
A74: 5 | B74: 盐城东方建设投资股份有限公司 | C74: 韩资工业园 | D74: 韩资工业园东方电子5#厂房 | E74: （2020）0151022 | F74: 25,924.20 | G74: 盐城经济技术开发区岷江路111号5幢 | H74: 不动产权证面积(房产）
A75: 6 | B75: 盐城东方建设投资股份有限公司 | C75: 韩资工业园 | D75: 韩资工业园东方电子6#厂房 | E75: （2020）0151026 | F75: 25,924.20 | G75: 盐城经济技术开发区岷江路111号6幢 | H75: 不动产权证面积(房产）
C76: 韩资园1期厂房项目 | F76: =SUM(F77:F79) -> 20,839.96
A77: 1 | B77: 盐城东方建设投资股份有限公司 | C77: 韩资工业园 | D77: 韩资工业园一期2#厂房 | E77: (2017)0005162 | F77: 7,428.72 | G77: 盐城市经济技术开发区盐渎东路105号2幢 | H77: 不动产权证面积(房产）
A78: 2 | B78: 盐城东方建设投资股份有限公司 | C78: 韩资工业园 | D78: 韩资工业园一期4#厂房 | E78: (2017)0004673 | F78: 6,705.62 | G78: 盐城市经济技术开发区盐渎东路105号4幢 | H78: 不动产权证面积(房产）
A79: 3 | B79: 盐城东方建设投资股份有限公司 | C79: 韩资工业园 | D79: 韩资工业园一期6#厂房 | E79: (2017)0005038 | F79: 6,705.62 | G79: 盐城市经济技术开发区盐渎东路105号6幢 | H79: 不动产权证面积(房产）
C80: 韩资园2期厂房项目 | F80: =SUM(F81,F94) -> 124,069.84
F81: =SUM(F82:F93) -> 74,007.55
A82: 1 | B82: 盐城东方建设投资股份有限公司 | C82: 韩资工业园 | D82: 韩资工业园二期9#厂房 | E82: (2017)0005014 | F82: 6,350.65 | G82: 盐城市经济技术开发区盐渎东路109号第9幢 | H82: 不动产权证面积(房产）
A83: 2 | B83: 盐城东方建设投资股份有限公司 | C83: 韩资工业园 | D83: 韩资工业园二期10#厂房 | E83: (2017)0005016 | F83: 6,712.19 | G83: 盐城市经济技术开发区盐渎东路109号第10幢 | H83: 不动产权证面积(房产）
A84: 3 | B84: 盐城东方建设投资股份有限公司 | C84: 韩资工业园 | D84: 韩资工业园二期11#厂房 | E84: (2017)0005033 | F84: 7,073.74 | G84: 盐城市经济技术开发区盐渎东路109号第11幢 | H84: 不动产权证面积(房产）
A85: 4 | B85: 盐城东方建设投资股份有限公司 | C85: 韩资工业园 | D85: 韩资工业园二期12#厂房 | E85: (2016)8897107 | F85: 4,651.47 | G85: 盐城市经济技术开发区盐渎东路109号第12幢 | H85: 不动产权证面积(房产）
A86: 5 | B86: 盐城东方建设投资股份有限公司 | C86: 韩资工业园 | D86: 韩资工业园二期15#厂房 | E86: (2016)8897108 | F86: 4,420.62 | G86: 盐城市经济技术开发区盐渎东路109号第15幢 | H86: 不动产权证面积(房产）
A87: 6 | B87: 盐城东方建设投资股份有限公司 | C87: 韩资工业园 | D87: 韩资工业园二期16#厂房 | E87: (2016)8897116 | F87: 4,025.56 | G87: 盐城市经济技术开发区盐渎东路109号第16幢 | H87: 不动产权证面积(房产）
A88: 7 | B88: 盐城东方建设投资股份有限公司 | C88: 韩资工业园 | D88: 韩资工业园二期17#厂房 | E88: (2016)8897111 | F88: 6,669.76 | G88: 盐城市经济技术开发区盐渎东路109号第17幢 | H88: 不动产权证面积(房产）
A89: 8 | B89: 盐城东方建设投资股份有限公司 | C89: 韩资工业园 | D89: 韩资工业园二期18#厂房 | E89: (2016)8897115 | F89: 6,669.76 | G89: 盐城市经济技术开发区盐渎东路109号第18幢 | H89: 不动产权证面积(房产）
A90: 9 | B90: 盐城东方建设投资股份有限公司 | C90: 韩资工业园 | D90: 韩资工业园二期19#厂房 | E90: (2016)8897112 | F90: 6,208.53 | G90: 盐城市经济技术开发区盐渎东路109号第19幢 | H90: 不动产权证面积(房产）
A91: 10 | B91: 盐城东方建设投资股份有限公司 | C91: 韩资工业园 | D91: 韩资工业园二期20#厂房 | E91: (2017)0005160 | F91: 7,077.79 | G91: 盐城市经济技术开发区盐渎东路109号第20幢 | H91: 不动产权证面积(房产）
A92: 11 | B92: 盐城东方建设投资股份有限公司 | C92: 韩资工业园 | D92: 韩资工业园二期21#厂房 | E92: (2017)0005166 | F92: 7,073.74 | G92: 盐城市经济技术开发区盐渎东路109号第21幢 | H92: 不动产权证面积(房产）
A93: 12 | B93: 盐城东方建设投资股份有限公司 | C93: 韩资工业园 | D93: 韩资工业园二期22#厂房 | E93: (2017)0005161 | F93: 7,073.74 | G93: 盐城市经济技术开发区盐渎东路109号第22幢 | H93: 不动产权证面积(房产）
F94: =SUM(F95:F100) -> 50062.29
A95: 1 | B95: 盐城东方建设投资股份有限公司 | C95: 韩资工业园 | D95: 韩资工业园7#厂房 | E95: （2021）0147213 | F95: 8,448.18 | G95: 盐城经济技术开发区岷江路106号1幢 | H95: 不动产权证面积(房产）
A96: 2 | B96: 盐城东方建设投资股份有限公司 | C96: 韩资工业园 | D96: 韩资工业园7-2#厂房 | E96: （2021）0147228 | F96: 4,711.52 | G96: 盐城经济技术开发区岷江路106号2幢 | H96: 不动产权证面积(房产）
A97: 3 | B97: 盐城东方建设投资股份有限公司 | C97: 韩资工业园 | D97: 韩资工业园8#厂房 | E97: （2021）0147232 | F97: 9,625.02 | G97: 盐城经济技术开发区岷江路108号2幢 | H97: 不动产权证面积(房产）
A98: 4 | B98: 盐城东方建设投资股份有限公司 | C98: 韩资工业园 | D98: 韩资工业园8-2#厂房 | E98: （2021）0147231 | F98: 6,109.54 | G98: 盐城经济技术开发区岷江路108号1幢 | H98: 不动产权证面积(房产）
A99: 5 | B99: 盐城东方建设投资股份有限公司 | C99: 韩资工业园 | D99: 韩资工业园二期23#厂房 | E99: （2020）0145358 | F99: 6,750.67 | G99: 盐城经济开发区崂山路46号10幢 | H99: 不动产权证面积(房产）
A100: 6 | B100: 盐城东方建设投资股份有限公司 | C100: 韩资工业园 | D100: 韩资工业园二期阿现特厂房[即：20#（新）厂房] | E100: （2020）0145360 | F100: 14,417.36 | G100: 盐城经济开发区崂山路46号9幢 | H100: 不动产权证面积(房产）
C101: 韩资园3期标厂房项目 | F101: =SUM(F102:F110) -> 60,646.92
A102: 1 | B102: 盐城东方建设投资股份有限公司 | C102: 韩资工业园 | D102: 韩资工业园三期1#车间（即：1#标准厂房） | E102: (2017)0005036 | F102: 7,512.43 | G102: 盐城市经济技术开发区盐渎东路111号第1幢 | H102: 不动产权证面积(房产）
A103: 2 | B103: 盐城东方建设投资股份有限公司 | C103: 韩资工业园 | D103: 韩资工业园三期2#车间（即：2#标准厂房） | E103: (2017)0005167 | F103: 5,879.80 | G103: 盐城市经济技术开发区盐渎东路111号第2幢 | H103: 不动产权证面积(房产）
A104: 3 | B104: 盐城东方建设投资股份有限公司 | C104: 韩资工业园 | D104: 韩资工业园三期3#车间（即：3#标准厂房） | E104: (2017)0005168 | F104: 6,750.67 | G104: 盐城市经济技术开发区盐渎东路111号第3幢 | H104: 不动产权证面积(房产）
A105: 4 | B105: 盐城东方建设投资股份有限公司 | C105: 韩资工业园 | D105: 韩资工业园三期4#车间（即：4#标准厂房） | E105: (2017)0005164 | F105: 6,750.67 | G105: 盐城市经济技术开发区盐渎东路111号第4幢 | H105: 不动产权证面积(房产）
A106: 5 | B106: 盐城东方建设投资股份有限公司 | C106: 韩资工业园 | D106: 韩资工业园三期5#车间（即：5#标准厂房） | E106: (2017)0005035 | F106: 6,750.67 | G106: 盐城市经济技术开发区盐渎东路111号第5幢 | H106: 不动产权证面积(房产）
A107: 6 | B107: 盐城东方建设投资股份有限公司 | C107: 韩资工业园 | D107: 韩资工业园三期6#车间（即：6#标准厂房） | E107: (2017)0005163 | F107: 6,750.67 | G107: 盐城市经济技术开发区盐渎东路111号第6幢 | H107: 不动产权证面积(房产）
A108: 7 | B108: 盐城东方建设投资股份有限公司 | C108: 韩资工业园 | D108: 韩资工业园三期7#车间（即：7#标准厂房） | E108: (2017)0005018 | F108: 6,750.67 | G108: 盐城市经济技术开发区盐渎东路111号第7幢 | H108: 不动产权证面积(房产）
A109: 8 | B109: 盐城东方建设投资股份有限公司 | C109: 韩资工业园 | D109: 韩资工业园三期8#车间（即：8#标准厂房） | E109: (2017)0005037 | F109: 6,750.67 | G109: 盐城市经济技术开发区盐渎东路111号第8幢 | H109: 不动产权证面积(房产）
A110: 9 | B110: 盐城东方建设投资股份有限公司 | C110: 韩资工业园 | D110: 韩资工业园三期9#车间（即：9#标准厂房） | E110: (2017)0005165 | F110: 6,750.67 | G110: 盐城市经济技术开发区盐渎东路111号第9幢 | H110: 不动产权证面积(房产）
C111: 韩资园4期标厂项目 | F111: =SUM(F112:F119) -> 47,203.48
A112: 1 | B112: 盐城东方建设投资股份有限公司 | C112: 韩资工业园 | D112: 韩资工业园四期1#标准厂房 | E112: (2016)0036722 | F112: 5,845.08 | G112: 盐城市经济技术开发区普陀山路56号1幢 | H112: 不动产权证面积(房产）
A113: 2 | B113: 盐城东方建设投资股份有限公司 | C113: 韩资工业园 | D113: 韩资工业园四期2#标准厂房 | E113: (2016)0036723 | F113: 5,845.08 | G113: 盐城市经济技术开发区普陀山路56号2幢 | H113: 不动产权证面积(房产）
A114: 3 | B114: 盐城东方建设投资股份有限公司 | C114: 韩资工业园 | D114: 韩资工业园四期3#标准厂房 | E114: (2016)0036724 | F114: 5,845.08 | G114: 盐城市经济技术开发区普陀山路56号3幢 | H114: 不动产权证面积(房产）
A115: 4 | B115: 盐城东方建设投资股份有限公司 | C115: 韩资工业园 | D115: 韩资工业园四期4#标准厂房 | E115: (2016)0036725 | F115: 5,845.08 | G115: 盐城市经济技术开发区普陀山路56号4幢 | H115: 不动产权证面积(房产）
A116: 5 | B116: 盐城东方建设投资股份有限公司 | C116: 韩资工业园 | D116: 韩资工业园四期5#标准厂房 | E116: (2016)0036719 | F116: 5,955.79 | G116: 盐城市经济技术开发区普陀山路56号5幢 | H116: 不动产权证面积(房产）
A117: 6 | B117: 盐城东方建设投资股份有限公司 | C117: 韩资工业园 | D117: 韩资工业园四期6#标准厂房 | E117: (2016)0036718 | F117: 5,955.79 | G117: 盐城市经济技术开发区普陀山路56号6幢 | H117: 不动产权证面积(房产）
A118: 7 | B118: 盐城东方建设投资股份有限公司 | C118: 韩资工业园 | D118: 韩资工业园四期7#标准厂房 | E118: (2016)0036729 | F118: 5,955.79 | G118: 盐城市经济技术开发区普陀山路56号7幢 | H118: 不动产权证面积(房产）
A119: 8 | B119: 盐城东方建设投资股份有限公司 | C119: 韩资工业园 | D119: 韩资工业园四期8#标准厂房 | E119: (2016)0036726 | F119: 5,955.79 | G119: 盐城市经济技术开发区普陀山路56号8幢 | H119: 不动产权证面积(房产）
C120: 韩资园东方之洲项目 | F120: =SUM(F121:F128) -> 188,995.71
A121: 1 | B121: 盐城东方建设投资股份有限公司 | C121: 韩资工业园 | D121: 东方之洲C4标准厂房A楼 | E121: （2020）0022918 | F121: 24,194.44 | G121: 盐城经济技术开发区盐渎东路99号1幢 | H121: 不动产权证面积(房产）
A122: 2 | B122: 盐城东方建设投资股份有限公司 | C122: 韩资工业园 | D122: 东方之洲C4标准厂房B楼 | E122: （2020）0022919 | F122: 21,647.88 | G122: 盐城经济技术开发区盐渎东路99号2幢 | H122: 不动产权证面积(房产）
A123: 3 | B123: 盐城东方建设投资股份有限公司 | C123: 韩资工业园 | D123: 东方之洲C4标准厂房C楼 | E123: （2020）0022920 | F123: 21,678.75 | G123: 盐城经济技术开发区盐渎东路99号3幢 | H123: 不动产权证面积(房产）
A124: 4 | B124: 盐城东方建设投资股份有限公司 | C124: 韩资工业园 | D124: 东方之洲C4标准厂房D楼 | E124: （2020）0022921 | F124: 24,326.86 | G124: 盐城经济技术开发区盐渎东路99号4幢 | H124: 不动产权证面积(房产）
A125: 5 | B125: 盐城东方建设投资股份有限公司 | C125: 韩资工业园 | D125: 东方之洲C4标准厂房地下室 | E125: （2020）0022923 | F125: 17,965.25 | G125: 盐城经济技术开发区盐渎东路99号1号地下室 | H125: 不动产权证面积(房产）
A126: 6 | B126: 盐城东方建设投资股份有限公司 | C126: 韩资工业园 | D126: 东方之洲C7标准厂房 | E126: （2020）0022922 | F126: 37,649.30 | G126: 盐城经济技术开发区盐渎东路99号5幢 | H126: 不动产权证面积(房产）
A127: 7 | B127: 盐城东方建设投资股份有限公司 | C127: 韩资工业园 | D127: 东方之洲B9研发办公楼 | E127: （2021）0137001 | F127: 37,011.46 | G127: 盐城经济技术开发区盐渎东路82号9幢 | H127: 不动产权证面积(房产）
A128: 8 | B128: 盐城东方建设投资股份有限公司 | C128: 韩资工业园 | D128: 东方之洲B11公共服务中心 | E128: （2021）0137004 | F128: 4,521.77 | G128: 盐城经济技术开发区盐渎东路93号11幢 | H128: 不动产权证面积(房产）
C129: 韩资园5期标厂项目 | F129: =SUM(F130:F139) -> 111,434.90
A130: 1 | B130: 盐城东方建设投资股份有限公司 | C130: 韩资工业园 | D130: 韩资工业园五期标准厂房1#厂房 | E130: （2021）0103205 | F130: 7,532.32 | G130: 盐城经济技术开发区五台山路94号1幢 | H130: 不动产权证面积(房产）
A131: 2 | B131: 盐城东方建设投资股份有限公司 | C131: 韩资工业园 | D131: 韩资工业园五期标准厂房2#厂房 | E131: （2021）0103206 | F131: 7,532.32 | G131: 盐城经济技术开发区五台山路94号2幢 | H131: 不动产权证面积(房产）
A132: 3 | B132: 盐城东方建设投资股份有限公司 | C132: 韩资工业园 | D132: 韩资工业园五期标准厂房3#厂房 | E132: （2021）0103207 | F132: 7,532.32 | G132: 盐城经济技术开发区五台山路94号3幢 | H132: 不动产权证面积(房产）
A133: 4 | B133: 盐城东方建设投资股份有限公司 | C133: 韩资工业园 | D133: 韩资工业园五期标准厂房4#厂房 | E133: （2021）0103208 | F133: 7,532.32 | G133: 盐城经济技术开发区五台山路94号4幢 | H133: 不动产权证面积(房产）
A134: 5 | B134: 盐城东方建设投资股份有限公司 | C134: 韩资工业园 | D134: 韩资工业园五期标准厂房5#厂房 | E134: （2021）0103209 | F134: 7,532.32 | G134: 盐城经济技术开发区五台山路94号5幢 | H134: 不动产权证面积(房产）
A135: 6 | B135: 盐城东方建设投资股份有限公司 | C135: 韩资工业园 | D135: 韩资工业园五期标准厂房6#厂房 | E135: （2021）0103210 | F135: 7,532.32 | G135: 盐城经济技术开发区五台山路94号6幢 | H135: 不动产权证面积(房产）
A136: 7 | B136: 盐城东方建设投资股份有限公司 | C136: 韩资工业园 | D136: 韩资工业园五期标准厂房7#厂房 | E136: （2021）0103211 | F136: 7,532.32 | G136: 盐城经济技术开发区五台山路94号7幢 | H136: 不动产权证面积(房产）
A137: 8 | B137: 盐城东方建设投资股份有限公司 | C137: 韩资工业园 | D137: 韩资工业园五期标准厂房8#厂房 | E137: （2021）0103212 | F137: 7,532.32 | G137: 盐城经济技术开发区五台山路94号8幢 | H137: 不动产权证面积(房产）
A138: 9 | B138: 盐城东方建设投资股份有限公司 | C138: 韩资工业园 | D138: 韩资工业园五期标准厂房9#厂房 | E138: （2021）0103203 | F138: 25,588.17 | G138: 盐城经济技术开发区五台山路94号9幢 | H138: 不动产权证面积(房产）
A139: 10 | B139: 盐城东方建设投资股份有限公司 | C139: 韩资工业园 | D139: 韩资工业园五期标准厂房10#厂房 | E139: （2021）0103204 | F139: 25,588.17 | G139: 盐城经济技术开发区五台山路94号10幢 | H139: 不动产权证面积(房产）
C140: 韩资园韩国社区项目 | F140: =SUM(F141:F147) -> 69,627.85
A141: 1 | B141: 盐城东方建设投资股份有限公司 | C141: 韩资工业园 | D141: 韩资工业园国际邻里中心宿舍楼A（即：韩资工业园韩国社区A楼） | E141: （2020）0145791 | F141: 9,503.76 | G141: 盐城经济技术开发区九华山路50号1幢 | H141: 不动产权证面积(房产）
A142: 2 | B142: 盐城东方建设投资股份有限公司 | C142: 韩资工业园 | D142: 韩资工业园国际邻里中心宿舍楼B（即：韩资工业园韩国社区B楼） | E142: （2020）0145801 | F142: 10,020.14 | G142: 盐城经济技术开发区九华山路50号2幢 | H142: 不动产权证面积(房产）
A143: 3 | B143: 盐城东方建设投资股份有限公司 | C143: 韩资工业园 | D143: 韩资工业园国际邻里中心宿舍楼C（即：韩资工业园韩国社区C楼） | E143: （2020）0145806 | F143: 10,534.62 | G143: 盐城经济技术开发区九华山路50号3幢 | H143: 不动产权证面积(房产）
A144: 4 | B144: 盐城东方建设投资股份有限公司 | C144: 韩资工业园 | D144: 韩资工业园国际邻里中心宿舍楼D（即：韩资工业园韩国社区D楼） | E144: （2020）0145467 | F144: 11886.39 | G144: 盐城经济技术开发区九华山路50号5幢 | H144: 不动产权证面积(房产）
A145: 5 | B145: 盐城东方建设投资股份有限公司 | C145: 韩资工业园 | D145: 韩资工业园国际邻里中心宿舍楼E（即：韩资工业园韩国社区E楼） | E145: （2020）0145471 | F145: 11350.46 | G145: 盐城经济技术开发区九华山路50号6幢 | H145: 不动产权证面积(房产）
A146: 6 | B146: 盐城东方建设投资股份有限公司 | C146: 韩资工业园 | D146: 韩资工业园国际邻里中心宿舍楼F（即：韩资工业园韩国社区F楼） | E146: （2020）0145477 | F146: 10812.38 | G146: 盐城经济技术开发区九华山路50号7幢 | H146: 不动产权证面积(房产）
A147: 7 | B147: 盐城东方建设投资股份有限公司 | C147: 韩资工业园 | D147: 韩资工业园国际邻里中心宿舍楼餐饮后勤楼（即：韩资工业园韩国社区后勤楼） | E147: （2021）0121304 | F147: 5,520.10 | G147: 盐城经济技术开发区九华山路50号8幢 | H147: 不动产权证面积(房产）
C148: （四）新能源 | E148: 新能源面积合计 | F148: =SUM(F149,F155) -> 72,220.68
C149: 新能源检测车间项目 | F149: =SUM(F150:F154) -> 15,353.96
A150: 1 | B150: 盐城东方建设投资股份有限公司 | C150: 新能源 | D150: 新能源汽车及汽车零部件产业园检测车间1#楼 | E150: （2020）0111706 | F150: 7,100.65 | G150: 盐城经济技术开发区东环南路69号1幢 | H150: 不动产权证面积(房产）
D151: 新能源汽车及汽车零部件产业园检测车间2#楼
A152: 2 | B152: 盐城东方建设投资股份有限公司 | C152: 新能源 | D152: 新能源汽车及汽车零部件产业园检测车间3#楼 | E152: （2020）0111707 | F152: 2,942.68 | G152: 盐城经济技术开发区东环南路69号3幢 | H152: 不动产权证面积(房产）
A153: 3 | B153: 盐城东方建设投资股份有限公司 | C153: 新能源 | D153: 新能源汽车及汽车零部件产业园检测车间4#楼 | E153: （2020）0111709 | F153: 3,362.48 | G153: 盐城经济技术开发区东环南路69号4幢 | H153: 不动产权证面积(房产）
A154: 4 | B154: 盐城东方建设投资股份有限公司 | C154: 新能源 | D154: 新能源汽车及汽车零部件产业园测试车间 | E154: （2020）0111711 | F154: 1,948.15 | G154: 盐城经济技术开发区东环南路69号5幢 | H154: 不动产权证面积(房产）
C155: 新能源标厂项目 | F155: =SUM(F156:F166) -> 56,866.72
A156: 1 | B156: 盐城东方建设投资股份有限公司 | C156: 新能源 | D156: 新能源汽车及汽车零部件产业园1#标准厂房 | E156: （2020）0111687 | F156: 4,805.92 | G156: 盐城经济技术开发区湘江路28号1幢 | H156: 不动产权证面积(房产）
A157: 2 | B157: 盐城东方建设投资股份有限公司 | C157: 新能源 | D157: 新能源汽车及汽车零部件产业园2#标准厂房 | E157: （2020）0111688 | F157: 4,805.92 | G157: 盐城经济技术开发区湘江路28号2幢 | H157: 不动产权证面积(房产）
A158: 3 | B158: 盐城东方建设投资股份有限公司 | C158: 新能源 | D158: 新能源汽车及汽车零部件产业园3#标准厂房 | E158: （2020）0111690 | F158: 3,605.44 | G158: 盐城经济技术开发区湘江路28号3幢 | H158: 不动产权证面积(房产）
A159: 4 | B159: 盐城东方建设投资股份有限公司 | C159: 新能源 | D159: 新能源汽车及汽车零部件产业园4#、6#标准厂房 | E159: （2020）0111692 | F159: 10,008.00 | G159: 盐城经济技术开发区湘江路28号4幢 | H159: 不动产权证面积(房产）
A160: 5 | B160: 盐城东方建设投资股份有限公司 | C160: 新能源 | D160: 新能源汽车及汽车零部件产业园5#标准厂房 | E160: （2020）0111693 | F160: 4,805.92 | G160: 盐城经济技术开发区湘江路28号5幢 | H160: 不动产权证面积(房产）
A161: 6 | B161: 盐城东方建设投资股份有限公司 | C161: 新能源 | D161: 新能源汽车及汽车零部件产业园7#标准厂房 | E161: （2020）0111712 | F161: 4,805.92 | G161: 盐城经济技术开发区湘江路28号7幢 | H161: 不动产权证面积(房产）
A162: 7 | B162: 盐城东方建设投资股份有限公司 | C162: 新能源 | D162: 新能源汽车及汽车零部件产业园8#标准厂房 | E162: （2020）0111697 | F162: 4,805.92 | G162: 盐城经济技术开发区湘江路28号8幢 | H162: 不动产权证面积(房产）
A163: 8 | B163: 盐城东方建设投资股份有限公司 | C163: 新能源 | D163: 新能源汽车及汽车零部件产业园9#标准厂房 | E163: （2020）0111699 | F163: 4,805.92 | G163: 盐城经济技术开发区湘江路28号9幢 | H163: 不动产权证面积(房产）
A164: 9 | B164: 盐城东方建设投资股份有限公司 | C164: 新能源 | D164: 新能源汽车及汽车零部件产业园10#标准厂房 | E164: （2020）0111700 | F164: 4,805.92 | G164: 盐城经济技术开发区湘江路28号10幢 | H164: 不动产权证面积(房产）
A165: 10 | B165: 盐城东方建设投资股份有限公司 | C165: 新能源 | D165: 新能源汽车及汽车零部件产业园11#标准厂房 | E165: （2020）0111701 | F165: 4,805.92 | G165: 盐城经济技术开发区湘江路28号11幢 | H165: 不动产权证面积(房产）
A166: 11 | B166: 盐城东方建设投资股份有限公司 | C166: 新能源 | D166: 新能源汽车及汽车零部件产业园12#标准厂房 | E166: （2020）0111702 | F166: 4,805.92 | G166: 盐城经济技术开发区湘江路28号12幢 | H166: 不动产权证面积(房产）
C167: （五）光电产业园 | E167: 光电园面积合计 | F167: =SUM(F169:F175) -> 38,412.11
C168: 光电园封装厂房项目 | F168: =SUM(F169:F175) -> 38,412.11
A169: 1 | B169: 盐城东方建设投资股份有限公司 | C169: 光电产业园 | D169: 光电产业园科技研发区1#LED封装厂房 | E169: （2020）0104151 | F169: 6,036.91 | G169: 盐城经济技术开发区漓江路66号1幢 | H169: 不动产权证面积(房产）
A170: 2 | B170: 盐城东方建设投资股份有限公司 | C170: 光电产业园 | D170: 光电产业园科技研发区2#LED封装厂房 | E170: （2020）0104152 | F170: 6,130.72 | G170: 盐城经济技术开发区漓江路66号2幢 | H170: 不动产权证面积(房产）
A171: 3 | B171: 盐城东方建设投资股份有限公司 | C171: 光电产业园 | D171: 光电产业园科技研发区3#LED封装厂房 | E171: （2020）0104153 | F171: 6,130.72 | G171: 盐城经济技术开发区漓江路66号3幢 | H171: 不动产权证面积(房产）
A172: 4 | B172: 盐城东方建设投资股份有限公司 | C172: 光电产业园 | D172: 光电产业园科技研发区4#LED封装厂房 | E172: （2020）0104154 | F172: 6,130.72 | G172: 盐城经济技术开发区漓江路66号4幢 | H172: 不动产权证面积(房产）
A173: 5 | B173: 盐城东方建设投资股份有限公司 | C173: 光电产业园 | D173: 光电产业园科技研发区5#LED封装厂房 | E173: （2020）0104157 | F173: 6,106.37 | G173: 盐城经济技术开发区漓江路66号5幢 | H173: 不动产权证面积(房产）
A174: 6 | B174: 盐城东方建设投资股份有限公司 | C174: 光电产业园 | D174: 光电产业园科技研发区6#LED封装厂房 | E174: （2020）0104155 | F174: 6,106.37 | G174: 盐城经济技术开发区漓江路66号6幢 | H174: 不动产权证面积(房产）
A175: 7 | B175: 盐城东方建设投资股份有限公司 | C175: 光电产业园 | D175: 光电产业园科技研发区展示馆 | E175: （2020）0104158 | F175: 1,770.30 | G175: 盐城经济技术开发区漓江路66号7幢规划展示馆 | H175: 不动产权证面积(房产）
C176: （六）步凤汽车零部件产业园 | E176: 步凤零部件产业园面积合计 | F176: =SUM(F178:F183) -> 24,223.50
C177: 汽车零部件产业园厂房项目 | F177: =SUM(F178:F183) -> 24,223.50
A178: 1 | B178: 盐城东方建设投资股份有限公司 | C178: 汽车零部件产业园（步凤） | D178: 汽车零部件产业园（步凤）1#厂房 | E178: (2017)0090152 | F178: 4,840.61 | G178: 盐城经济技术开发区步凤镇信音路1号1幢 | H178: 不动产权证面积(房产）
A179: 2 | B179: 盐城东方建设投资股份有限公司 | C179: 汽车零部件产业园（步凤） | D179: 汽车零部件产业园（步凤）2#厂房 | E179: (2017)0090153 | F179: 4,840.61 | G179: 盐城经济技术开发区步凤镇信音路1号2幢 | H179: 不动产权证面积(房产）
A180: 3 | B180: 盐城东方建设投资股份有限公司 | C180: 汽车零部件产业园（步凤） | D180: 汽车零部件产业园（步凤）3#厂房 | E180: (2017)0090154 | F180: 3,635.57 | G180: 盐城经济技术开发区步凤镇信音路1号3幢 | H180: 不动产权证面积(房产）
A181: 4 | B181: 盐城东方建设投资股份有限公司 | C181: 汽车零部件产业园（步凤） | D181: 汽车零部件产业园（步凤）4#厂房 | E181: (2017)0090155 | F181: 3,635.57 | G181: 盐城经济技术开发区步凤镇信音路1号4幢 | H181: 不动产权证面积(房产）
A182: 5 | B182: 盐城东方建设投资股份有限公司 | C182: 汽车零部件产业园（步凤） | D182: 汽车零部件产业园（步凤）5#厂房 | E182: (2017)0090157 | F182: 3,635.57 | G182: 盐城经济技术开发区步凤镇信音路1号5幢 | H182: 不动产权证面积(房产）
A183: 6 | B183: 盐城东方建设投资股份有限公司 | C183: 汽车零部件产业园（步凤） | D183: 汽车零部件产业园（步凤）6#厂房 | E183: (2017)0090159 | F183: 3,635.57 | G183: 盐城经济技术开发区步凤镇信音路1号6幢 | H183: 不动产权证面积(房产）
C184: （七）未来科技城(南区) | E184: 未来科技城南区面积合计 | F184: =SUM(F186:F200) -> 266,437.34
C185: 未来科技城(南区项目) | F185: =SUM(F186:F200) -> 266,437.34
A186: 1 | B186: 盐城东方建设投资股份有限公司 | C186: 未来科技城(南区，原称：大学科技园) | D186: 未来科技城C3幢(黄海湿地研究院) | E186: 建字第320901201630136 | F186: 19,086.22 | G186: 盐城经济技术开发区新都东路82号未来科技城 | H186: 规划许可证面积
A187: 2 | B187: 盐城东方建设投资股份有限公司 | C187: 未来科技城(南区，原称：大学科技园) | D187: 未来科技城C2幢(兴业银行) | E187: （2021）8905418 | F187: 19,268.34 | G187: 盐城经济技术开发区新都东路82号未来科技城2幢101室 | H187: 不动产权证面积(房产）
A188: 3 | B188: 盐城东方建设投资股份有限公司 | C188: 未来科技城(南区，原称：大学科技园) | D188: 未来科技城C1C2C3幢1区地下车库 | E188: 320901201630137 | F188: 20,569.44 | G188: 泰山路西侧、新都东路北侧 | H188: 规划许可证面积
A189: 4 | B189: 盐城东方建设投资股份有限公司 | C189: 未来科技城(南区，原称：大学科技园) | D189: 未来科技城C1C2C3幢2区地下车库 | E189: 320901201730007 | F189: 16,316.01 | G189: 泰山路西侧、新都东路北侧 | H189: 规划许可证面积
A190: 5 | B190: 盐城东方建设投资股份有限公司 | C190: 未来科技城(南区，原称：大学科技园) | D190: 未来科技城D1幢 | E190: 建字第320901201730178 | F190: 12,738.40 | G190: 盐城经济技术开发区新都东路82号未来科技城 | H190: 规划许可证面积
A191: 6 | B191: 盐城东方建设投资股份有限公司 | C191: 未来科技城(南区，原称：大学科技园) | D191: 未来科技城D2幢 | E191: 建字第320901201730179 | F191: 12,727.48 | G191: 盐城经济技术开发区新都东路82号未来科技城 | H191: 规划许可证面积
A192: 7 | B192: 盐城东方建设投资股份有限公司 | C192: 未来科技城(南区，原称：大学科技园) | D192: 未来科技城D1D2D3D4幢地下车库 | E192: 建字第320901201730185 | F192: 12,918.56 | G192: 盐城经济技术开发区新都东路82号未来科技城 | H192: 规划许可证面积
A193: 8 | B193: 盐城东方建设投资股份有限公司 | C193: 未来科技城(南区，原称：大学科技园) | D193: 未来科技城D3幢 | E193: (2022)0027332 | F193: 12663.63 | G193: 盐城经济技术开发区新都东路82号未来科技城5幢 | H193: 不动产权证面积(房产）
A194: 9 | B194: 盐城东方建设投资股份有限公司 | C194: 未来科技城(南区，原称：大学科技园) | D194: 未来科技城D4幢 | E194: (2022)0027331 | F194: 12718.28 | G194: 盐城经济技术开发区新都东路82号未来科技城4幢 | H194: 不动产权证面积(房产）
A195: 10 | B195: 盐城东方建设投资股份有限公司 | C195: 未来科技城(南区，原称：大学科技园) | D195: 未来科技城A1A2幢 | E195: / | F195: 39,107.62 | G195: 盐城经济技术开发区新都东路82号未来科技城10幢 | H195: 不动产权证面积(房产）
A196: 11 | B196: 盐城东方建设投资股份有限公司 | C196: 未来科技城(南区，原称：大学科技园) | D196: 未来科技城A1A2幢地下车库 | E196: 建字第320901201730182 | F196: 4,715.07 | G196: 盐城经济技术开发区新都东路82号未来科技城10幢 | H196: 规划许可证面积
A197: 12 | B197: 盐城东方建设投资股份有限公司 | C197: 未来科技城(南区，原称：大学科技园) | D197: 未来科技城B1幢 | E197: （2022）0076380 | F197: 17,918.12 | G197: 盐城经济技术开发区新都东路82号未来科技城 | H197: 不动产权证面积(房产）
A198: 13 | B198: 盐城东方建设投资股份有限公司 | C198: 未来科技城(南区，原称：大学科技园) | D198: 未来科技城B1幢地下车库 | E198: 建字第320901201730183 | F198: 4,913.05 | G198: 盐城经济技术开发区新都东路82号未来科技城 | H198: 规划许可证面积
A199: 14 | B199: 盐城东方建设投资股份有限公司 | C199: 未来科技城(南区，原称：大学科技园) | D199: 未来科技城B2B3幢 | E199: 建字第320901201730177 | F199: 48,688.19 | G199: 盐城经济技术开发区新都东路82号未来科技城 | H199: 规划许可证面积
A200: 15 | B200: 盐城东方建设投资股份有限公司 | C200: 未来科技城(南区，原称：大学科技园) | D200: 未来科技城B2B3幢地下车库 | E200: 建字第320901201730184 | F200: 12,088.93 | G200: 盐城经济技术开发区新都东路83号未来科技城 | H200: 规划许可证面积
... 1 more rows

Sheet 集团公司
A1: 防雷检测工程项目汇总表2（盐城东方投资开发集团有限公司） 编制人：陈超（资产部） 编制日期：2022年11月18日
A2: 序号 | B2: 建设单位（全称） | C2: 项目所在园区 | D2: 建筑物名称（全称与规划许可证、 房产证统一） | E2: 产权证号、规划许可证号 | F2: 建筑面积（㎡） | G2: 公安备案坐落 （门牌号） | H2: 备注
C3: 合计 | E3: 盐城东方集团 面积合计 | F3: =SUM(F4,F7) -> 101,762.70
C4: （一）软件园 | F4: =SUM(F5:F6) -> 59,384.14
A5: 1 | B5: 盐城东方投资开发集团有限公司 | C5: 软件园 | D5: 软件园1#楼 | E5: / | F5: 28,802.06 | G5: 盐城经济技术开发区希望大道南路5号1幢 | H5: 不动产权证面积(房产）
A6: 2 | B6: 盐城东方投资开发集团有限公司 | C6: 软件园 | D6: 软件园4#楼 | E6: / | F6: 30,582.08 | G6: 盐城经济技术开发区希望大道南路5号4幢 | H6: 不动产权证面积(房产）
C7: （二）盐城国际会展中心 | F7: 42,378.56
A8: 1 | B8: 盐城东方投资开发集团有限公司 | C8: 盐城国际会展中心 | D8: 盐城国际会展中心 | E8: (2017)0029294 | F8: 42,378.56 | G8: 盐城经济技术开发区黄山南路9号1幢 | H8: 不动产权证面积(房产）
A9: 备注：本表检测面积统计时间截止于2022年11月18日。

Sheet 漕河泾公司
A1: 防雷检测工程项目汇总表3（盐城漕河泾园区开发有限公司） 编制人：陈超（资产部） 编制日期：2022年11月18日
A2: 序号 | B2: 建设单位（全称） | C2: 项目所在园区 | D2: 建筑物名称（全称与规划许可证、 房产证统一） | E2: 产权证号、规划许可证号 | F2: 建筑面积（㎡） | G2: 公安备案坐落 （门牌号） | H2: 备注
C3: 漕河泾园区 | E3: 漕河泾园区面积合计 | F3: =SUM(F4:F4) -> 12,061.96
A4: 1 | B4: 盐城漕河泾园区开发有限公司 | C4: 漕河泾园区 | D4: 漕河泾园区1#楼 | E4: (2017)00035842 | F4: 12,061.96 | G4: 盐城经济技术开发区五台山路1号1幢 | H4: 不动产权证面积(房产）
A5: 备注：本表检测面积统计时间截止于2022年11月18日。

Sheet 东创
A1: 防雷检测工程项目汇总表4（盐城东创建设发展有限公司） 编制人：陈超（资产部） 编制日期：2022年11月18日
A2: 序号 | B2: 建设单位（全称） | C2: 项目所在园区 | D2: 建筑物名称（全称与规划许可证、 房产证统一） | E2: 产权证号、规划许可证号 | F2: 建筑面积（㎡） | G2: 公安备案坐落 （门牌号） | H2: 备注
E3: 面积合计 | F3: =SUM(F4,F7) -> 78324.81
C4: 江动地块 | F4: =SUM(F5:F6) -> 63,004.78
A5: 1 | B5: 盐城东创建设发展有限公司 | C5: / | D5: 江动地块1#厂房 | E5: （2020）0106540 | F5: 32,142.37 | G5: 盐城经济技术开发区希望大道南路58号1幢 | H5: 不动产权证面积(房产）
A6: 2 | B6: 盐城东创建设发展有限公司 | C6: / | D6: 江动地块2#厂房 | E6: （2020）0106542 | F6: 30,862.41 | G6: 盐城经济技术开发区希望大道南路58号2幢 | H6: 不动产权证面积(房产）
C7: 东国地块 | F7: 15,320.03
A8: 1 | B8: 盐城东创建设发展有限公司 | C8: / | D8: 东国厂房 | E8: （2021）8887352 | F8: 15,320.03 | G8: 盐城经济技术开发区珠江路62号1幢 | H8: 不动产权证面积(房产）
A9: 备注：本表检测面积统计为2022年11月18日。

Sheet 面积合计
A1: 防雷检测工程项目汇总表 编制人：陈超（资产部） 编制日期：2022年11月18日
A2: 序号 | B2: 建设单位（全称） | C2: 项目所在园区 | D2: 建筑物名称（全称与规划许可证、 房产证统一） | E2: 产权证号、规划许可证号 | F2: 建筑面积（㎡） | G2: 备注
A3: 1 | B3: 盐城东方建设投资股份有限公司 | C3: 软件园 | D3: / | E3: 软件园面积合计 | F3: 62,694.12
A4: 2 | B4: 盐城东方建设投资股份有限公司 | C4: 综保区 | D4: / | E4: 综保区面积合计 | F4: 620,507.31
A5: 3 | B5: 盐城东方建设投资股份有限公司 | C5: 韩资园 | D5: / | E5: 韩资园面积合计 | F5: 758,366.36 | M5: 767,478.14 | N5: 768011.11
A6: 4 | B6: 盐城东方建设投资股份有限公司 | C6: 新能源 | D6: / | E6: 新能源面积合计 | F6: 72,220.68
A7: 5 | B7: 盐城东方建设投资股份有限公司 | C7: 光电产业园 | D7: / | E7: 光电园面积合计 | F7: 38,412.11
A8: 6 | B8: 盐城东方建设投资股份有限公司 | C8: 步凤汽车零部件产业园 | D8: / | E8: 步凤零部件产业园面积合计 | F8: 24,223.50
A9: 7 | B9: 盐城东方建设投资股份有限公司 | C9: 未来科技城南区 | D9: / | E9: 未来科技城南区合计 | F9: 266,437.34
A10: 7 | B10: 盐城漕河泾园区开发有限公司 | C10: 漕河泾园区 | D10: / | E10: 漕河泾园区面积合计 | F10: 12,061.96
A11: 8 | B11: 盐城东方投资开发集团有限公司 | C11: 软件园、会展中心 | D11: / | E11: 软件园、会展中心面积合计 | F11: 101,762.70
A12: 9 | B12: 盐城东创建设发展有限公司 | C12: 江动地块、东国 | D12: / | E12: 江动地块合计 | F12: 78,324.81
C13: 总合计 | F13: =SUM(F3:F12) -> 2,035,010.89
A14: 备注：本表检测面积统计时间截止于2022年11月18日。
